bitfinex/quotes_ETHUSD_20250622
["timestamp","ask_amount","ask_price","bid_price","bid_amount"]
[1750616258267,7.812,2186.6,2186.5,0.7698]
[1750616258422,7.8533,2187.0,2186.5,0.0103]
[1750616258756,7.815,2186.9,2186.6,0.7698]
[1750616259062,7.815,2186.9,2186.6,0.7595]
[1750616260218,7.815,2186.9,2186.3,0.0103]
[1750616260219,7.815,2186.9,2186.4,0.7595]
[1750616261735,8.09213957,2187.0,2186.5,0.0581]
[1750616261932,7.8533,2187.0,2186.4,0.7595]
[1750616262159,7.816,2186.9,2186.6,0.0581]
[1750616262464,7.816,2186.9,2186.5,1.40114859]
[1750616262646,7.813,2186.8,2186.7,0.0581]
[1750616263021,7.813,2186.8,2186.7,0.8176]
[1750616263217,2.118,2187.1,2186.8,0.0581]
[1750616263418,2.118,2187.9,2187.1,0.7595]
[1750616263624,2.118,2187.9,2187.3,0.8188]
[1750616263862,7.821,2187.8,2187.4,0.0581]
[1750616264322,2.118,2187.9,2187.4,0.0581]
[1750616264521,7.821,2187.8,2187.5,0.0581]
[1750616264790,7.821,2187.8,2187.3,0.8188]
[1750616265431,7.821,2187.8,2187.4,0.0581]
[1750616265760,0.5025,2187.7,2187.1,0.0581]
[1750616266358,0.5025,2187.7,2186.9,0.8188]
[1750616266660,0.5025,2187.7,2186.9,3.38161594]
[1750616266856,0.5025,2187.7,2186.9,3.42733977]
[1750616267157,0.5025,2187.7,2187.0,0.0103]
[1750616267963,7.817,2187.6,2187.3,0.0103]
[1750616268462,7.817,2187.6,2187.2,0.7629]
[1750616269171,7.817,2187.6,2187.3,0.0103]
[1750616269673,7.8533,2187.9,2187.4,0.8325]
[1750616270377,7.819,2187.8,2187.5,0.0103]
[1750616270756,7.819,2187.8,2187.4,0.8325]
[1750616270968,7.819,2187.8,2187.5,0.0103]
[1750616271171,7.819,2187.8,2187.4,2.24094859]
[1750616271572,7.819,2187.8,2187.5,0.0581]
[1750616271862,7.819,2187.7,2187.6,0.0581]
[1750616272445,7.811,2188.0,2187.7,0.8325]
[1750616272754,2.118,2188.3,2187.7,2.24551961]
[1750616272933,0.23874304,2188.4,2187.7,2.24551961]
[1750616272934,0.23874304,2188.4,2188.0,0.8325]
[1750616273135,7.811,2188.3,2188.0,0.8945]
[1750616273551,2.118,2188.2,2187.8,0.8945]
[1750616273750,2.118,2188.2,2187.8,0.8325]
[1750616275371,2.118,2188.2,2187.5,0.8422]
[1750616276206,2.118,2188.2,2187.5,0.7802]
[1750616276368,0.5025,2188.1,2187.5,0.7802]
[1750616276984,0.5025,2188.1,2187.3,0.7827]
[1750616276985,10.5025,2188.1,2187.3,0.7827]
[1750616277284,10.5025,2188.1,2187.1,0.7802]
[1750616277651,0.5025,2188.0,2187.1,0.7802]
[1750616278289,9.925,2187.9,2187.2,0.0025]
[1750616279851,9.941,2187.8,2187.4,0.0025]
[1750616280183,7.807,2187.7,2187.4,0.0025]
[1750616280965,18.8443,2188.5,2187.7,0.0025]
[1750616280966,7.811,2187.8,2187.7,0.0025]
[1750616281165,7.811,2187.8,2187.6,0.8606]
[1750616281366,7.811,2187.8,2187.7,0.062]
[1750616282462,0.5025,2188.4,2187.7,0.062]
[1750616282687,9.94,2188.3,2187.7,1.41125859]
[1750616282886,9.9873,2188.5,2188.1,13.2519859]
[1750616283087,2.134,2188.5,2188.3,0.7986]
[1750616284284,9.938,2188.5,2188.4,0.062]
[1750616285472,7.8533,2189.0,2188.4,0.062]
[1750616285473,7.8533,2189.0,2188.4,0.8514]
[1750616285678,9.93,2188.9,2188.4,0.7894]
[1750616286008,9.93,2188.9,2188.4,2.19353859]
[1750616286480,9.93,2188.9,2188.4,0.7894]
[1750616286660,7.8533,2189.0,2188.4,0.7894]
[1750616286862,9.929,2188.9,2188.6,0.8514]
[1750616287301,9.929,2188.9,2188.6,0.7894]
[1750616288073,9.924,2188.8,2188.7,0.062]
[1750616289102,9.923,2188.8,2188.7,0.062]
[1750616289394,7.8533,2189.0,2188.7,0.062]
[1750616289597,9.922,2188.8,2188.7,0.062]
[1750616289993,7.8533,2189.0,2188.7,0.062]
[1750616290194,7.787,2189.0,2188.8,0.062]
[1750616290688,7.787,2189.0,2188.7,0.7894]
[1750616291067,7.787,2189.0,2188.8,0.062]
[1750616291267,7.8533,2189.4,2189.0,0.062]
[1750616291571,7.786,2189.3,2188.9,0.83508533]
[1750616291876,7.786,2189.3,2188.9,2.19810712]
[1750616292075,7.8533,2189.4,2188.9,2.24378716]
[1750616292428,7.784,2189.3,2188.9,2.19810712]
[1750616292584,7.784,2189.3,2189.0,0.062]
[1750616294601,7.784,2189.3,2189.1,0.062]
[1750616295103,7.775,2189.3,2189.0,0.062]
[1750616295303,7.775,2189.3,2188.9,0.8321]
[1750616296299,7.775,2189.3,2188.9,0.8941]
[1750616296494,7.775,2189.3,2188.9,2.30870859]
[1750616296893,7.778,2189.2,2188.9,2.24670859]
[1750616297410,7.778,2189.2,2188.9,2.30870859]
[1750616297878,7.778,2189.2,2188.9,2.24670859]
[1750616298079,7.778,2189.2,2188.6,0.8941]
[1750616298888,7.778,2189.2,2188.6,0.93978649]
[1750616299411,7.778,2189.2,2188.6,0.8321]
[1750616299979,7.778,2189.2,2188.7,0.062]
[1750616300182,7.778,2189.2,2188.6,0.8321]
[1750616300183,10.55,2189.1,2188.4,0.8321]
[1750616300439,0.55,2188.7,2188.3,1.373623]
[1750616300578,0.5025,2188.8,2188.3,1.373623]
[1750616300579,9.903,2188.6,2188.3,1.373623]
[1750616300783,9.903,2188.6,2187.9,0.816]
[1750616301083,0.5025,2188.5,2187.9,1.04492586]
[1750616301285,11.531,2189.0,2188.2,0.816]
[1750616301286,7.776,2188.4,2188.2,0.816]
[1750616301588,7.806,2188.3,2188.2,0.8177]
[1750616301783,7.806,2188.4,2188.3,0.0017]
[1750616301985,7.806,2188.5,2188.3,0.0017]
[1750616302196,7.805,2188.5,2188.4,13.2519859]
[1750616302550,7.805,2188.5,2188.4,13.2536859]
[1750616303029,10.981,2189.0,2188.4,13.2536859]
[1750616303320,7.803,2188.6,2188.5,0.86338815]
[1750616303618,9.937,2188.8,2188.6,0.0017]
[1750616303778,9.937,2188.8,2188.5,10.816]
[1750616303982,9.937,2188.8,2188.6,2.40679859]
[1750616304324,13.114,2189.0,2188.9,0.0017]
[1750616304490,13.114,2189.0,2188.8,0.7771]
[1750616304689,13.114,2189.0,2188.9,0.0017]
[1750616304909,13.114,2189.0,2188.8,0.7788]
[1750616305101,13.114,2189.0,2188.8,1.09735986]
[1750616305307,7.802,2188.9,2188.8,1.09735986]
[1750616305620,7.802,2188.9,2188.5,10.7788]
[1750616305814,0.5025,2189.4,2188.6,0.0017]
[1750616306016,7.798,2189.0,2188.6,0.0017]
[1750616306207,7.798,2189.0,2188.6,0.0602]
[1750616306391,7.798,2189.0,2188.6,10.0602]
[1750616306599,7.798,2189.0,2188.7,2.46912859]
[1750616308117,7.798,2189.0,2188.6,10.0602]
[1750616308819,0.5025,2189.4,2188.6,10.0602]
[1750616309020,7.809,2189.0,2188.7,0.0602]
[1750616309610,7.815,2188.9,2188.7,0.0602]
[1750616310788,7.815,2188.9,2188.5,14.0892859]
[1750616311334,15.6683,2188.9,2188.2,0.7635]
[1750616311491,15.6683,2188.9,2187.9,0.0087]
[1750616311492,1.0525,2188.8,2188.0,0.7635]
[1750616312026,0.5025,2188.7,2187.6,1.374082]
[1750616312229,0.55,2188.7,2187.6,0.0087]
[1750616312385,0.5025,2188.5,2187.8,0.0087]
[1750616312788,0.5025,2188.5,2187.8,10.0087]
[1750616313108,0.5025,2188.5,2187.8,0.0087]
[1750616313421,0.5025,2188.5,2187.8,10.0087]
[1750616313834,0.5025,2188.5,2188.1,0.0087]
[1750616314020,7.822,2188.4,2188.1,0.0087]
[1750616314211,7.822,2188.4,2188.0,13.2519859]
[1750616314404,7.823,2188.4,2188.1,0.0087]
[1750616314842,7.823,2188.4,2188.3,0.0087]
[1750616315021,11.4835,2188.8,2188.3,0.0087]
[1750616315227,9.959,2188.7,2188.3,0.0087]
[1750616315431,0.5025,2188.8,2188.3,0.0087]
[1750616315634,18.0629859,2189.7,2188.5,0.0087]
[1750616315635,2.136,2189.0,2188.5,0.0087]
[1750616315828,9.955,2188.9,2188.4,0.8143]
[1750616316022,9.955,2188.9,2188.2,0.823]
[1750616316244,9.955,2188.9,2188.3,10.0]
[1750616317332,9.955,2188.9,2188.3,23.2519859]
[1750616317833,9.955,2188.9,2188.7,0.0602]
[1750616319047,9.955,2188.9,2188.4,1.434012]
[1750616319452,9.955,2188.9,2188.4,1.373812]
[1750616319883,9.955,2188.9,2188.3,24.0058859]
[1750616319884,0.5025,2188.8,2188.3,10.7539]
[1750616320148,0.5025,2188.8,2188.3,13.56026068]
[1750616320931,0.5025,2188.8,2188.3,13.50006068]
[1750616321340,0.5025,2188.8,2188.4,0.0602]
[1750616322060,9.955,2188.9,2188.3,26.75204658]
[1750616322964,9.955,2188.9,2188.4,0.0602]
[1750616323166,9.955,2188.9,2188.4,2.92652968]
[1750616323468,7.811,2188.8,2188.5,0.7539]
[1750616323623,7.811,2188.8,2188.6,0.0602]
[1750616326766,7.811,2188.8,2188.6,0.0087]
[1750616326934,7.811,2188.8,2188.5,0.7539]
[1750616327268,7.811,2188.8,2188.6,0.0087]
[1750616327831,7.811,2188.8,2188.6,1.382392]
[1750616328358,7.8533,2189.2,2188.6,1.382392]
[1750616328695,9.932,2189.1,2188.6,14.6256779]
[1750616329037,9.932,2189.1,2188.7,0.0087]
[1750616329234,7.8533,2189.2,2188.9,0.0087]
[1750616329439,9.9893,2189.2,2188.8,0.0087]
[1750616329634,9.9893,2189.2,2188.7,1.83561355]
[1750616329880,7.794,2189.1,2188.7,1.83561355]
[1750616330076,7.794,2189.1,2188.8,0.0087]
[1750616330266,7.794,2189.1,2188.8,1.64699915]
[1750616330460,0.5025,2189.7,2189.0,0.0087]
[1750616330665,7.8533,2189.8,2189.7,0.0087]
[1750616330850,7.795,2189.8,2189.6,0.8055]
[1750616331185,7.795,2189.8,2189.7,0.0087]
[1750616332581,7.795,2189.8,2189.6,0.8664]
[1750616332778,7.795,2189.8,2189.7,1.373001]
[1750616333076,0.5025,2190.5,2189.8,0.0609]
[1750616333245,2.136,2190.4,2190.3,13.2519859]
[1750616333446,9.927,2190.4,2190.3,13.3128859]
[1750616334381,2.136,2190.4,2190.2,0.8664]
[1750616334579,7.787,2190.3,2190.2,0.8664]
[1750616334770,2.136,2190.4,2190.2,2.28280394]
[1750616334946,7.787,2190.3,2190.2,2.28280394]
[1750616335284,2.086,2190.4,2190.3,0.0609]
[1750616335452,2.086,2190.4,2190.3,13.3128859]
[1750616335657,7.784,2190.5,2190.3,13.2519859]
[1750616335868,7.784,2190.5,2190.4,1.60828898]
[1750616336273,7.784,2190.5,2190.4,1.54738898]
[1750616336445,7.784,2190.5,2189.9,0.7541]
[1750616336652,7.784,2190.5,2190.0,13.29764367]
[1750616336846,7.784,2190.5,2190.1,0.0609]
[1750616337087,7.79,2190.4,2190.3,13.3128859]
[1750616337258,7.79,2190.4,2189.9,0.815]
[1750616337457,7.79,2190.4,2189.9,0.7541]
[1750616337858,10.981,2190.7,2190.5,0.0609]
[1750616338081,7.793,2190.5,2189.7,2.39721895]
[1750616338287,7.793,2190.5,2189.4,0.0609]
[1750616338288,0.5025,2190.3,2189.4,0.7541]
[1750616338581,10.977,2190.5,2190.1,13.2519859]
[1750616338782,7.815,2190.3,2190.1,14.41855856]
[1750616338984,7.815,2190.3,2190.2,0.0609]
[1750616339925,7.815,2190.3,2190.1,0.0609]
[1750616340257,7.815,2190.3,2190.0,0.8266]
[1750616340853,7.815,2190.3,2190.1,0.0609]
[1750616341266,7.815,2190.3,2190.1,1.433587]
[1750616341481,7.815,2190.3,2190.1,1.372687]
[1750616341684,7.815,2190.3,2190.2,0.0009]
[1750616341893,7.815,2190.3,2190.2,0.5014744]
[1750616342096,9.958,2190.6,2190.4,0.0009]
[1750616342298,9.958,2190.6,2190.4,13.2519859]
[1750616342467,9.958,2190.6,2190.3,0.7666]
[1750616342794,0.5025,2190.5,2190.1,12.138387]
[1750616343162,0.5025,2190.5,2190.1,13.3523157]
[1750616343387,7.825,2190.4,2190.2,0.0009]
[1750616344096,2.148,2190.6,2190.2,0.04565405]
[1750616344295,7.8533,2191.0,2190.2,0.04565405]
[1750616344296,7.8533,2191.0,2190.6,0.8047]
[1750616344497,7.827,2190.9,2190.7,13.2528859]
[1750616344687,7.833,2190.9,2190.7,14.66230893]
[1750616345003,7.833,2190.9,2190.8,0.0009]
[1750616345311,7.8533,2191.0,2190.8,0.0009]
[1750616345603,7.8533,2191.0,2190.9,0.0009]
[1750616345808,10.976,2191.5,2190.9,0.0009]
[1750616346003,7.828,2191.5,2191.4,0.0009]
[1750616346305,9.981,2191.7,2191.4,0.8047]
[1750616346605,2.148,2191.7,2191.6,0.0609]
[1750616346792,2.6505,2192.1,2191.6,13.2519859]
[1750616346982,7.832,2192.0,2191.7,0.04562461]
[1750616347186,10.975,2192.4,2192.0,0.0609]
[1750616347391,7.841,2192.5,2192.2,13.3128859]
[1750616347724,7.84,2192.6,2192.3,0.8656]
[1750616347874,7.839,2192.7,2192.5,13.2519859]
[1750616348074,7.839,2192.7,2192.6,0.0609]
[1750616348284,0.23845323,2193.4,2192.8,0.0609]
[1750616348506,7.789,2193.3,2192.8,9.8927186]
[1750616348677,7.789,2193.3,2193.0,0.0609]
[1750616349073,7.789,2193.3,2192.7,0.8047]
[1750616349474,7.789,2193.3,2192.7,0.85030107]
[1750616349673,7.789,2193.3,2192.8,9.8927186]
[1750616349980,7.789,2193.3,2192.7,3.39044003]
[1750616349981,7.856,2193.9,2193.2,10.0609]
[1750616350310,7.92822394,2193.9,2193.3,0.10648608]
[1750616350606,0.06522394,2193.9,2193.3,0.10648608]
[1750616350904,7.92422394,2193.9,2193.3,0.10648608]
[1750616351108,7.92422394,2193.9,2193.3,2.04550655]
[1750616351318,7.92422394,2193.9,2193.4,1.370567]
[1750616351893,7.859,2193.9,2193.4,1.370567]
[1750616352499,2.147,2194.0,2193.5,0.81188484]
[1750616352698,0.74087734,2194.3,2193.7,9.8927186]
[1750616352699,7.852,2194.3,2193.7,9.8927186]
[1750616353090,7.852,2194.3,2193.8,0.04557485]
[1750616353717,9.997,2194.4,2193.9,0.7663]
[1750616354423,9.997,2194.4,2193.6,0.7825]
[1750616356108,9.997,2194.4,2193.6,0.8434]
[1750616356429,9.997,2194.4,2193.8,0.0609]
[1750616356651,9.997,2194.4,2194.1,0.0609]
[1750616357622,9.997,2194.4,2193.8,0.0609]
[1750616357822,9.997,2194.4,2193.6,0.7825]
[1750616358031,9.997,2194.4,2193.6,3.03803073]
[1750616358242,10.4995,2194.4,2193.4,11.370567]
[1750616358394,10.4995,2194.4,2193.4,11.431467]
[1750616359020,0.5025,2194.4,2193.4,11.370567]
[1750616359317,7.845,2194.3,2193.7,10.0]
[1750616359500,7.845,2194.3,2193.8,1.98927186]
[1750616359701,7.845,2194.3,2193.9,0.0609]
[1750616360199,7.845,2194.3,2194.0,0.0609]
[1750616360537,7.845,2194.3,2194.0,0.888]
[1750616360739,7.845,2194.3,2193.8,1.98927186]
[1750616360907,7.845,2194.3,2193.7,10.888]
[1750616361335,7.845,2194.3,2193.7,0.888]
[1750616361538,7.845,2194.3,2193.4,12.197667]
[1750616362020,10.5025,2194.2,2193.4,2.197667]
[1750616362542,10.5025,2194.2,2193.5,0.04558172]
[1750616362831,10.5025,2194.2,2193.5,1.41358878]
[1750616363044,10.5025,2194.2,2193.4,2.197667]
[1750616363410,10.5025,2194.2,2193.4,1.370567]
[1750616364033,0.5025,2194.2,2193.5,0.04558522]
[1750616364243,7.839,2194.1,2193.7,0.7624]
[1750616364408,2.3704202,2194.6,2193.9,9.8927186]
[1750616364755,10.2134202,2194.6,2194.0,0.04556873]
[1750616364911,10.2134202,2194.6,2193.8,1.06551186]
[1750616365105,10.2134202,2194.6,2193.7,0.7624]
[1750616365419,0.5025,2194.5,2193.7,0.7624]
[1750616366154,7.843,2194.4,2193.7,0.7624]
[1750616366610,7.843,2194.4,2193.7,0.80797971]
[1750616367756,7.843,2194.4,2193.7,0.80797657]
[1750616367923,7.843,2194.4,2193.8,1.08671766]
[1750616368122,7.843,2194.4,2193.9,0.0455766]
[1750616368457,0.5025,2194.5,2193.9,0.0592]
[1750616368606,0.2254202,2194.6,2194.2,0.85]
[1750616368806,0.2254202,2194.6,2193.9,10.7908]
[1750616369048,0.2254202,2194.6,2193.9,0.7908]
[1750616369648,8.3565,2194.5,2193.7,0.89557516]
[1750616370139,8.3565,2194.5,2193.8,0.0592]
[1750616370349,8.3565,2194.5,2193.8,1.14875752]
[1750616370515,8.3565,2194.5,2193.9,0.04557615]
[1750616370722,7.854,2194.5,2194.0,0.0592]
[1750616370919,0.2254202,2194.6,2194.2,0.7908]
[1750616371124,0.2254202,2194.6,2194.3,0.0455702]
[1750616371424,0.2254202,2194.6,2194.4,0.0075]
[1750616371623,0.2254202,2194.6,2194.3,1.20992428]
[1750616371934,0.2254202,2194.6,2194.4,0.0075]
[1750616372126,0.2254202,2194.6,2194.3,1.25549051]
[1750616372450,0.2254202,2194.6,2194.4,0.0075]
[1750616372950,0.2254202,2194.6,2194.4,0.25211494]
[1750616373154,0.2254202,2194.6,2194.4,0.25961494]
[1750616373333,0.2254202,2194.6,2194.5,0.05306543]
[1750616373537,0.2254202,2194.6,2194.5,0.84386543]
[1750616373736,0.2254202,2194.6,2194.5,0.7983]
[1750616373941,0.2254202,2194.6,2194.5,0.7908]
[1750616374131,0.2254202,2194.6,2194.4,0.25211494]
[1750616375248,0.2254202,2194.6,2194.5,1.369923]
[1750616376021,0.2254202,2194.6,2194.5,1.78483298]
[1750616376263,0.2254202,2194.6,2194.5,1.73926922]
[1750616377744,0.2254202,2194.6,2194.5,0.36184622]
[1750616378040,0.2254202,2194.6,2194.4,0.25211494]
[1750616379455,0.2254202,2194.6,2194.3,11.20992428]
[1750616379657,0.7279202,2194.6,2194.0,0.8859]
[1750616380084,0.7279202,2194.6,2193.7,0.8859]
[1750616380427,0.7279202,2194.6,2193.7,2.256135]
[1750616380746,10.7279202,2194.6,2193.7,0.8859]
[1750616380919,10.7279202,2194.6,2193.6,1.370266]
[1750616380920,0.5025,2194.4,2193.6,1.370266]
[1750616381126,7.836,2194.3,2193.7,0.1047836]
[1750616381350,7.836,2194.3,2193.9,0.0076]
[1750616381552,7.836,2194.3,2193.7,0.99975022]
[1750616381953,7.836,2194.3,2193.6,0.8343]
[1750616382336,7.836,2194.3,2193.6,0.87228215]
[1750616382535,0.5025,2194.1,2193.3,0.8343]
[1750616383174,0.5025,2194.1,2193.4,0.04558636]
[1750616383374,0.5025,2194.1,2193.3,0.8267]
[1750616383577,0.5025,2194.1,2193.4,10.05318548]
[1750616383773,0.5025,2194.1,2193.5,2.07726041]
[1750616386280,0.5025,2194.0,2193.2,0.0592]
[1750616386574,0.5025,2194.0,2193.2,0.10478679]
[1750616386774,0.5025,2194.0,2193.2,0.0592]
[1750616387641,0.5025,2194.0,2193.1,0.8267]
[1750616387848,0.5025,2194.0,2193.1,2.90456186]
[1750616388350,0.5025,2194.0,2193.1,2.96376186]
[1750616388678,0.55,2193.9,2193.1,2.07786186]
[1750616388907,0.5025,2193.8,2192.9,0.45057136]
[1750616389113,2.168,2193.7,2192.8,0.8859]
[1750616389271,7.856,2193.6,2192.8,0.8859]
[1750616389806,0.5025,2193.5,2192.8,0.0592]
[1750616392500,0.5025,2193.5,2192.4,0.7626]
[1750616392718,0.5025,2193.3,2192.4,0.7626]
[1750616392871,2.6705,2193.2,2192.4,0.7626]
[1750616393078,2.6705,2193.2,2192.4,0.0076]
[1750616394209,0.5025,2193.1,2192.2,0.755]
[1750616394393,0.55,2193.0,2192.0,1.37125]
[1750616394577,0.5025,2192.8,2191.8,0.0076]
[1750616394773,0.5025,2192.6,2191.6,2.1756]
[1750616395010,0.5025,2192.6,2191.7,0.3547207]
[1750616395171,2.168,2192.7,2191.6,0.0076]
[1750616395172,0.5025,2192.4,2191.6,0.0076]
[1750616395574,0.5025,2192.4,2190.8,5.04842499]
[1750616395575,0.5025,2192.2,2191.1,0.8373]
[1750616395806,0.5025,2192.0,2191.1,0.8373]
[1750616397627,0.5025,2192.0,2191.3,10.0574]
[1750616397826,0.5025,2192.0,2191.3,10.5060629]
[1750616398135,0.5025,2192.0,2191.5,0.0574]
[1750616398275,10.009,2192.1,2191.6,0.8297]
[1750616398475,7.841,2192.1,2191.6,0.8297]
[1750616398787,7.841,2192.1,2191.5,0.0574]
[1750616398977,7.841,2192.1,2191.4,2.03987815]
[1750616399292,7.841,2192.1,2191.5,1.3297941]
[1750616399499,0.5025,2192.0,2191.4,2.03987815]
[1750616400509,0.5025,2192.0,2191.4,2.08550518]
[1750616401720,0.5025,2192.2,2191.6,0.0068]
[1750616401882,0.5025,2192.2,2191.6,0.04561783]
[1750616402088,0.5025,2192.6,2192.1,0.0068]
[1750616402299,0.5025,2192.4,2191.7,10.0]
[1750616402588,0.5025,2192.4,2191.5,10.8162]
[1750616402783,0.5025,2192.4,2191.6,0.04562074]
[1750616403008,0.5025,2192.4,2191.8,10.0068]
[1750616403327,0.5025,2192.8,2192.1,10.0068]
[1750616403494,8.3515,2192.8,2192.2,0.05240948]
[1750616403699,8.3515,2192.8,2192.2,0.0068]
[1750616403896,8.3515,2192.8,2192.2,2.07769186]
[1750616405304,8.3515,2192.8,2192.3,0.05240739]
[1750616405523,15.7023,2192.9,2192.4,0.7546]
[1750616405693,15.7023,2192.9,2192.6,0.0068]
[1750616406619,15.7023,2192.9,2192.5,0.04560533]
[1750616406922,2.158,2193.1,2192.5,1.17159132]
[1750616407226,10.0113,2193.5,2192.7,0.0574]
[1750616407520,7.839,2193.2,2192.9,0.0574]
[1750616407921,7.839,2193.2,2192.6,0.0574]
[1750616408119,0.5025,2193.1,2192.7,0.0574]
[1750616408539,7.839,2193.2,2192.8,0.0574]
[1750616408836,7.839,2193.3,2192.8,0.0574]
[1750616409017,7.839,2193.3,2192.7,0.04560179]
[1750616409214,7.839,2193.3,2192.8,0.0574]
[1750616409419,7.839,2193.3,2193.0,0.8202]
[1750616409629,2.158,2193.5,2193.1,0.0574]
[1750616409807,10.003,2193.5,2193.2,0.0574]
[1750616410149,7.845,2193.5,2193.2,0.0574]
[1750616410306,7.845,2193.5,2193.1,0.04558971]
[1750616410507,7.842,2193.6,2193.1,1.07011083]
[1750616410826,7.84,2193.8,2193.2,9.9501186]
[1750616411029,7.84,2193.8,2193.2,0.0574]
[1750616411930,0.5025,2193.3,2192.5,1.12598599]
[1750616412242,9.994,2193.2,2192.4,1.22245456]
[1750616412606,9.994,2193.2,2192.5,0.04560496]
[1750616413350,9.994,2193.2,2192.7,9.8927186]
[1750616413553,7.836,2193.2,2193.0,0.0574]
[1750616413853,0.5025,2193.6,2192.9,0.7628]
[1750616414346,7.849,2193.5,2192.7,0.0574]
[1750616414507,10.007,2193.5,2192.7,1.14302]
[1750616418445,0.5025,2193.4,2192.6,0.7988]
[1750616418751,0.5025,2193.4,2192.6,0.8562]
[1750616420553,0.5025,2193.4,2192.6,0.7988]
[1750616420554,7.8533,2193.3,2192.6,0.7988]
[1750616422952,7.8533,2193.3,2192.3,8.31585456]
[1750616423129,0.0574,2193.2,2192.4,0.68815997]
[1750616423334,0.0574,2193.2,2192.2,1.371137]
[1750616425053,0.0574,2193.2,2192.4,13.19303721]
[1750616425556,30.0,2192.2,2190.5,0.21314055]
[1750616425761,0.55,2190.3,2189.0,0.71349735]
[1750616425930,30.0,2189.3,2188.5,1.372966]
[1750616426263,11.372966,2188.5,2187.0,0.7929]
[1750616426430,10.741,2188.4,2187.0,0.7929]
[1750616426616,17.04615887,2188.7,2187.6,13.19303721]
[1750616426816,17.04615887,2188.7,2187.4,0.7929]
[1750616426817,0.55,2188.6,2187.7,11.18868228]
[1750616427060,2.407,2189.1,2187.7,1.31930372]
[1750616427263,0.55,2189.2,2187.9,13.19303721]
[1750616427424,0.55,2189.0,2188.0,0.7929]
[1750616427624,8.34,2189.1,2188.3,10.0]
[1750616427819,8.34,2189.1,2188.5,13.19303721]
[1750616428050,8.34,2189.1,2188.6,14.16587529]
[1750616428233,6.30015887,2189.6,2188.7,0.04568116]
[1750616428432,8.342,2189.6,2188.9,10.55]
[1750616428632,10.38224834,2189.5,2188.8,0.7929]
[1750616428844,0.55,2189.4,2188.4,0.7929]
[1750616429045,0.55,2189.4,2188.7,18.0]
[1750616429216,6.30015887,2189.2,2188.7,18.0]
[1750616429422,0.38224834,2189.5,2188.7,19.8]
[1750616429647,0.38224834,2189.5,2188.8,3.110616]
[1750616429965,16.68240721,2189.5,2188.7,19.8]
[1750616430174,13.6442734,2189.4,2188.7,18.0]
[1750616430338,6.30015887,2189.2,2188.7,18.0]
[1750616430664,6.30015887,2188.8,2188.7,18.0]
[1750616430824,15.04640721,2188.8,2188.7,8.39041822]
[1750616431164,8.74624834,2188.8,2187.9,0.7929]
[1750616431460,6.59093244,2188.7,2188.0,0.04569803]
[1750616431776,10.38224834,2188.6,2188.0,0.04569803]
[1750616432060,0.38224834,2188.5,2187.4,0.45219773]
[1750616432264,6.2086841,2188.3,2187.4,0.45219773]
[1750616432447,11.28724834,2188.2,2187.5,0.04570938]
[1750616432675,6.2086841,2188.1,2187.2,0.7929]
[1750616432822,6.2086841,2188.1,2187.3,1.07929]
[1750616433027,6.2086841,2188.1,2187.2,0.7929]
[1750616433238,6.2086841,2188.1,2187.4,10.0]
[1750616433563,6.59093244,2188.2,2187.5,0.55]
[1750616433764,6.59093244,2188.2,2187.5,0.5]
[1750616433977,6.59093244,2188.2,2187.6,1.05]
[1750616434338,0.38224834,2188.1,2187.6,1.05]
[1750616434530,0.38224834,2188.1,2187.6,19.05]
[1750616434854,6.59093244,2188.1,2187.6,19.05]
[1750616435054,0.38224834,2188.1,2187.6,19.05]
[1750616435255,0.38224834,2188.1,2187.7,1.955]
[1750616435942,6.59093244,2188.1,2187.7,1.955]
[1750616436142,6.59093244,2188.1,2187.7,0.0603]
[1750616436338,6.59093244,2188.1,2187.6,1.05]
[1750616436538,6.59093244,2188.1,2187.0,12.97947111]
[1750616436744,6.2086841,2187.9,2187.4,10.0]
[1750616437066,6.2086841,2187.9,2187.5,0.0457054]
[1750616437067,0.38224834,2187.8,2187.5,0.0457054]
[1750616437264,0.38224834,2187.8,2187.4,10.0]
[1750616438434,0.38224834,2187.8,2187.5,0.0603]
[1750616438650,0.38224834,2187.8,2187.5,1.87807711]
[1750616439132,0.38224834,2187.8,2187.4,10.0]
[1750616439360,0.38224834,2187.8,2187.3,1.374101]
[1750616439543,0.38224834,2187.8,2186.9,10.967]
[1750616439877,0.38224834,2187.8,2187.1,2.504]
[1750616440028,6.59093244,2187.8,2187.0,11.374354]
[1750616440228,8.364,2187.7,2187.1,0.04571095]
[1750616440552,6.59093244,2187.6,2186.9,0.10601472]
[1750616440729,0.38224834,2187.5,2186.9,12.28119518]
[1750616441340,0.38224834,2187.5,2186.3,0.0603]
[1750616441556,2.504,2187.4,2186.5,1.374668]
[1750616441756,0.01374641,2186.9,2186.3,0.0603]
[1750616441965,0.01374641,2186.9,2186.5,0.0603]
[1750616441966,8.37574641,2186.9,2186.5,0.0603]
[1750616442592,8.37574641,2186.9,2186.2,0.802]
[1750616443093,2.5644,2186.8,2185.9,0.2254202]
[1750616443253,2.504,2186.8,2186.0,0.04573805]
[1750616443458,8.7126841,2186.8,2185.9,0.2254202]
[1750616443682,8.7126841,2186.8,2186.0,10.0]
[1750616444584,2.504,2186.8,2186.2,10.0]